Cogmind - Beta 11 X7 @@@ ROGUE MODE // 2021.09.16 @ 15:19:59 Player: Plexion Result: Destroyed by D-53 Grenadier with Mini Grenade Launcher Performance ------------- Evolutions (0) 0 Regions Visited (2) 400 Robots Destroyed (12) 60 Value Destroyed (352) 352 Prototype IDs (0) 0 Alien Tech Used (0) 0 Bonus (0) 0 TOTAL SCORE: 812 Bonus ------- None Cogmind --------- Core Integrity 0/250 Matter 300/300 Energy 85/100 System Corruption 3% Temperature Cool (78) Movement Core (450) Ox8 Location -10/Mines Parts ------- > --- POWER (1) -------- (None) > --- PROPULSION (2) --- (None) > --- UTILITY (2) ------ Large Storage Unit Targeting Computer > --- WEAPON (2) ------- Beamcaster > --- INVENTORY (15) --- Improved Heat Sink Large Storage Unit Core Shielding Light Assault Rifle Peak State ------------ > --- POWER ------------ Improved Ion Engine > --- PROPULSION ------- Compact Wheel > --- UTILITY ---------- Large Storage Unit Targeting Computer > --- WEAPON ----------- Beamcaster > --- INVENTORY -------- Improved Heat Sink Large Storage Unit Core Shielding Light Assault Rifle [Rating: 10] Favorites ----------- Power Improved Ion Engine Engine Improved Ion Engine Propulsion Light Treads Treads Light Treads Wheel Compact Wheel Utility Targeting Computer Storage Large Storage Unit Processor Targeting Computer Weapon Light Assault Rifle Energy Gun EM Pulse Gun Ballistic Gun Light Assault Rifle Ballistic Cannon Light Cannon Build | -11 -10 -10 ------- Run | Scr Mat Min Slots Evolved . | . . . Power . | . . . Propulsion . | . . . Utility . | . . . Weapon . | . . . Parts Attached 19 | 7 10 2 Power 3 | 1 2 . Engine 3 | 1 2 . Core . | . . . Reactor . | . . . Propulsion 6 | 2 3 1 Treads 4 | 2 2 . Leg . | . . . Wheel 2 | . 1 1 Hover . | . . . Flight . | . . . Utility 3 | 1 2 . Device . | . . . Storage 2 | 1 1 . Processor 1 | . 1 . Hackware . | . . . Protection . | . . . Artifact . | . . . Weapon 7 | 3 3 1 Energy Gun 3 | 1 1 1 Energy Cannon . | . . . Ballistic Gun 3 | 2 1 . Ballistic Cannon 1 | . 1 . Launcher . | . . . Special Weapon . | . . . Impact Weapon . | . . . Slashing Weapon . | . . . Piercing Weapon . | . . . Special Melee Weapon . | . . . Unidentified Prototypes . | . . . Parts Lost 10 | . 4 6 Power 2 | . 1 1 Propulsion 4 | . 1 3 Utility . | . . . Weapon 4 | . 2 2 Highest Loss Streak 6 | . 4 6 Average Slot Usage (%) 97 | . 97 97 Engine 13 | . 13 13 Treads 23 | . 26 13 Wheel 3 | . . 13 Storage 14 | . 14 14 Processor 13 | . 13 14 Energy Gun 10 | . 12 . Ballistic Gun 13 | . 13 13 Ballistic Cannon 3 | . . 13 Naked Turns . | . . . Heaviest Build 31 | 13 31 31 Greatest Support 40 | 40 40 16 Greatest Overweight (x) 1 | 1 1 1 Average Overweight (x) . | . . 1 Largest Inventory Capacity 15 | 8 15 15 Average Capacity 13 | 7 14 15 Most Carried 8 | 4 8 6 Average Carried 5 | 2 6 4 Final Capacity 15 | 8 15 15 Final Carried 4 | 4 4 4 Class Distribution -------------------- 100% | Mutant Dominant Class ---------------- Mutant | -10/Materials Mutant | -10/Mines Resources | -11 -10 -10 ----------- Run | Scr Mat Min Matter Collected 510 | 169 210 131 Remotely . | . . . Salvage Created 395 | . 245 150 Parts 23 | . 18 5 Haulers Intercepted . | . . . Recyclers Shooed . | . . . Parts Field Recycled . | . . . Retrieved Matter . | . . . Parts Self-Destructed . | . . . Prevented . | . . . Kills | -11 -10 -10 ------- Run | Scr Mat Min Combat Hostiles Destroyed 11 | . 7 4 Guns 5 | . 4 1 Cannons 6 | . 3 3 Classes Destroyed 3 | . 3 . Worker 1 | . 1 . Swarmer 3 | . 3 . Grunt 8 | . 4 4 Best Kill Streak 4 | . 4 2 Combat Bots Only 4 | . 4 2 Max Kills in Single Turn 2 | . 1 2 Gunslinging . | . . . Exploded . | . . . Melee . | . . . Uniques/NPCs Destroyed . | . . . Combat | -11 -10 -10 -------- Run | Scr Mat Min Damage Taken 1152 | . 465 687 Core 266 | . 54 212 Absorbed by Shields . | . . . Core Remaining (%) 100 | 100 . . Volleys Fired 58 | 2 34 22 Largest 2 | 2 2 2 Hottest 75 | 40 75 75 Shots Fired 109 | 4 65 40 Gun 85 | 4 60 21 Cannon 24 | . 5 19 Launcher . | . . . Special . | . . . Kinetic 76 | 4 35 37 Thermal 3 | . . 3 Explosive . | . . . Electromagnetic 30 | . 30 . Robot Hit Streak 12 | 4 12 12 Robot Miss Streak 4 | . 4 3 Penetration Max . | . . . Secondary Targets 1 | . 1 . Max Gunslinging Chain 1 | . 1 . Shots Hit Robots 77 | 4 45 28 Core Hits 26 | 1 14 11 Critical Kills . | . . . Critical Parts Destroyed . | . . . Critical Strikes 1 | . 1 . Corrupt 1 | . 1 . Melee Attacks . | . . . Impact . | . . . Slashing . | . . . Piercing . | . . . Sneak Attacks . | . . . Combat Hostiles . | . . . Follow-up Attacks . | . . . Damage Inflicted 926 | 26 506 394 Guns 567 | 26 428 113 Cannons 359 | . 78 281 Explosions . | . . . Melee . | . . . Ramming . | . . . Kinetic 648 | 26 250 372 Thermal 22 | . . 22 Explosive . | . . . Electromagnetic 256 | . 256 . Impact . | . . . Slashing . | . . . Piercing . | . . . Highest Corruption 3 | . 3 3 Average Corruption 2 | . 2 3 Corruption Purged . | . . . Effects 11 | . 8 3 Message Errors 3 | . 2 1 Matter Fused 2 | . 2 . Heat Flow Errors 1 | . 1 . Energy Discharges 1 | . 1 . Data Loss (minor) 3 | . 2 1 Weapon Failures 1 | . . 1 Overload Shots . | . . . Overflow Damage . | . . . Projectiles . | . . . Explosions . | . . . Melee . | . . . Knockbacks 7 | . 1 6 Impact . | . . . Kinetic 7 | . 1 6 Secondary . | . . . Self-Inflicted Damage . | . . . Shots . | . . . Rammed . | . . . Targets Rammed . | . . . Kicked . | . . . Crushed . | . . . Highest Temperature 222 | . 222 184 Average Temperature 58 | . 48 76 Received Heat Transfer 396 | . 189 207 Siege Activations . | . . . Robots Corrupted . | . . . Combat Hostiles . | . . . Parts Fried . | . . . Impact Corruptions . | . . . Robots Melted . | . . . Combat Hostiles . | . . . Parts Melted . | . . . Heat Transferred 37 | . . 37 Parts Sabotaged . | . . . Parts Stolen . | . . . Parts Stripped . | . . . Power Chain Reactions . | . . . Missiles Intercepted . | . . . Alert | -11 -10 -10 ------- Run | Scr Mat Min Peak Influence 148 | . 141 148 Initial 33 | . . 33 Average 40 | . 30 96 Maximum Alert Level . | . . . Low Security (%) 100 | 100 100 100 Level 1 . | . . . Level 2 . | . . . Level 3 . | . . . Level 4 . | . . . Level 5 . | . . . High Security . | . . . Max Security . | . . . Squads Dispatched 1 | . 1 . Investigation . | . . . Extermination . | . . . Reinforcement 1 | . 1 . Assault . | . . . Garrison . | . . . Intercept . | . . . Construction Impeded . | . . . Haulers Reinforced . | . . . Active Scanning Responses . | . . . Cargo Convoy Interrupts . | . . . Stealth | -11 -10 -10 --------- Run | Scr Mat Min Distress Signals 2 | . 1 1 Communications Jammed . | . . . Distress Signals . | . . . Times Spotted 27 | . 21 6 Peak Tracking Total 6 | . 6 2 Tactical Retreats 3 | . 3 . Traps | -11 -10 -10 ------- Run | Scr Mat Min Traps Triggered 3 | . 3 . Indirectly . | . . . Trap Hack Attempts . | . . . Triggered . | . . . Disarmed . | . . . Reprogrammed . | . . . Reused . | . . . Traps Extracted . | . . . Installed . | . . . Triggered . | . . . Machines | -11 -10 -10 ---------- Run | Scr Mat Min Machines Disabled 1 | . 1 . Max in Single Turn 1 | . 1 . Machines Sabotaged . | . . . Garrisons Compromised . | . . . Overloaded Fab Kills . | . . . Fab Network Shutdowns . | . . . Hacking | -11 -10 -10 --------- Run | Scr Mat Min Machines Accessed 3 | . 3 . Terminals 3 | . 3 . Fabricators . | . . . Repair Stations . | . . . Recycling Units . | . . . Scanalyzers . | . . . Garrison Access . | . . . Total Hacks 11 | . 11 . Successful 4 | . 4 . Failed 7 | . 7 . Catastrophic 2 | . 2 . Database Lockouts . | . . . Manual 11 | . 11 . Terminals 11 | . 11 . Fabricators . | . . . Repair Stations . | . . . Recycling Units . | . . . Scanalyzers . | . . . Garrison Access . | . . . Terminal Hacks 1 | . 1 . Robot Analysis 1 | . 1 . Fabricator Hacks . | . . . Repair Station Hacks . | . . . Recycling Unit Hacks . | . . . Scanalyzer . | . . . Garrison Access Hacks . | . . . Unauthorized Hacks 3 | . 3 . Terminals 3 | . 3 . Track 1 | . 1 . Assimilate 1 | . 1 . Operators 1 | . 1 . Fabricators . | . . . Repair Stations . | . . . Recycling Units . | . . . Scanalyzers . | . . . Garrison Access . | . . . Data Cores Recovered . | . . . Used . | . . . Hacking Detections 3 | . 3 . Full Trace Events . | . . . Feedback Events . | . . . Feedback Blocked . | . . . Robot Schematics Acquired . | . . . Robots Built . | . . . Matter . | . . . Time . | . . . Total Robot Build Rating . | . . . Part Schematics Acquired . | . . . Parts Built . | . . . Matter . | . . . Time . | . . . Total Part Build Rating . | . . . Parts Repaired . | . . . Time . | . . . Parts Recycled . | . . . Recycled Matter . | . . . Retrieved Matter . | . . . Retrieved Components . | . . . Parts Scanalyzed . | . . . Part Schematics Acquired . | . . . Parts Damaged . | . . . Bothacking | -11 -10 -10 ------------ Run | Scr Mat Min Used RIF Installer . | . . . Robots Hacked . | . . . Non-combat . | . . . Combat . | . . . Robot Hacks Applied . | . . . Relay Couplers Released . | . . . Robots Rewired . | . . . Allies Hacked . | . . . Hacks Repelled . | . . . Allies | -11 -10 -10 -------- Run | Scr Mat Min Total Allies 1 | . 1 . Largest Group 1 | . 1 . Highest-Rated Group 10 | . 10 . Highest-Rated Ally 10 | . 10 . Total Orders 1 | . 1 . STAY 1 | . 1 . Ally Attacks . | . . . Total Damage . | . . . Kills . | . . . Allies Corrupted . | . . . Allies Melted . | . . . Intel | -11 -10 -10 ------- Run | Scr Mat Min Robot Analysis Total 1 | . 1 . Derelict Logs Recovered 2 | . . 2 Drone Launches . | . . . Drone Recoveries . | . . . Exploration | -11 -10 -10 ------------- Run | Scr Mat Min Turns Passed 1219 | 113 868 238 Spaces Moved 681 | 62 474 145 Core 5 | 5 . . Treads 492 | 57 435 . Legs . | . . . Wheels 184 | . 39 145 Hover . | . . . Flight . | . . . Fastest Speed 50 | 50 115 115 Average Speed 147 | 152 156 115 Slowest Speed 260 | 160 260 115 Overloaded Moves . | . . . Propulsion Burnouts . | . . . Robots Hopped . | . . . Cave-ins Triggered . | . . . Exploration Rate (%) 38 | 5 80 29 Regions Visited 2 Branch Regions 1 Pre-discovered Areas 1 | . . 1 Known Exits Taken . | . . . Unknown Exits Taken 2 | 1 1 . Scrap Searched . | . . . Spaces Dug . | . . . Terrain Destroyed 1 | . . 1 Melee . | . . . Projectile 1 | . . 1 AOE . | . . . Terrain Rammed . | . . . Walls Destroyed . | . . . Machines Disabled . | . . . Actions | -11 -10 -10 --------- Run | Scr Mat Min Total 793 | 74 539 180 Wait 23 | . 14 9 Move 679 | 61 473 145 Hop . | . . . Pick Up 11 | 4 5 2 Fast Attach 10 | 6 4 . Attach 6 | . 4 2 Detach . | . . . Swap 3 | 1 2 . Drop 3 | . 3 . Fire 58 | 2 34 22 Melee . | . . . Ram . | . . . Kick . | . . . Crush . | . . . Escape Stasis . | . . . Rewire . | . . . Trap . | . . . Miscellaneous . | . . . Route ------- -11/Scrapyard -10/Materials (discovered 3 exits: [*Mat x2] / [*Min]) -10/Mines (discovered 1 exit: [*Mat]) History --------- Turn | Location | Event 17 | -11/Scrapyard | Discovered new exit (range 14) 114 | -11/Scrapyard | Entered Materials 316 | -10/Materials | Discovered new exit (range 13) 318 | -10/Materials | Build established: Mutant 680 | -10/Materials | Discovered new exit (range 3) 946 | -10/Materials | Discovered new exit (range 14) 959 | -10/Materials | Lost 4 parts (1p1n2w) 982 | -10/Materials | Entered Mines 991 | -10/Mines | Discovered new exit (range 9) 1021 | -10/Mines | Met a Derelict bent on vengeance 1047 | -10/Mines | Learned location of Zion (-6) 1082 | -10/Mines | Assembled infested the area 1087 | -10/Mines | Assisted by a Guerilla fighting off Assembled 1098 | -10/Mines | Learned Materials trap positions 1213 | -10/Mines | Core integrity fell below 50% 1217 | -10/Mines | Core integrity fell below 20% 1220 | -10/Mines | Destroyed by D-53 Grenadier with Mini Grenade Launcher Last Messages --------------- 01119_ Critical hit (Burn: +37). 01120_ System corrupted: Lgt. Assault Rifle jammed. 01123_ G-47 Trooper knocked back. 01132_ System corrupted: Component data lost. 01137_ G-47 Trooper destroyed. 01141_ Acquired 4 matter. 01142_ Acquired 27 matter. 01144_ Acquired 4 matter. 01150_ Acquired 34 matter. 01152_ Acquired Beamcaster. 01169_ RP6F1H8IJ &GSY>H2DEB8||LVK 01210_ Laser Drill disabled. 01211_ Com. Wheel destroyed. 01212_ Lgt. Treads destroyed. 01213_ The unstable cave ceiling collapses. 01213_ Lgt. Cannon destroyed. 01213_ Lgt. Assault Rifle destroyed. 01218_ Com. Wheel destroyed. 01218_ Imp. Ion Engine destroyed. 01219_ The unstable cave ceiling collapses. Map ----- +----------------------------------------------------+ | | | | | | | | | | | | | | | | | ??????????????????????????????????? | | ??????????????????????????????????? | | ??????????????????????????????????? | | ?????????????##???????????????????? | | ????????????? #??????????????????? | | ????????????? #?????????????????? | | ????????????? ##???????????????? | | ????????????? ##??????????????? | | ?????????????? ##?????????????? | | ?????????????? ##????????????? | | ?????????????? ??????????? | | ?????????###??# ! ??????????? | | ?????##### ###? *% ??????????? | | ????## ## == ???????????? | | ????# # %= ##????????????? | | ????# = #????????????? | | ????# #?????????????? | | ???# @ d #?????????????? | | ????# d #???????????? | | ????# # #???????????? | | ????# # #??????????? | | ????# " # # ##?????????? | | ????# """%#### #?????????? | | ????# %%#??# #?????????? | | ????# #??## ##?????????? | | ????### ########## ##?????????? | | ??????# #?# # ###### #??? | | ?###### ##? """ #??? | | ?# #? """ ########??? | | ?# #? """ ### ##?????????? | | ?# #? ???# ##??????????? | | ?# """ #?####????# #???????????? | | ?# """ #?????????# ##??????????? | | ?# """ #?????????# ###????????? | | ?# #????????## ##???????? | | ?# #?????#### ##??????? | | ?#########????## ##?????? | | ??????????????# #?????? | | ??????????????# #?????? | | ??????????????## ### #????? | | ???????????????## ##??# ??? | | ???????????????## ##????# ?? | +----------------------------------------------------+ Best States ------------- Heat Dissipation 25 Energy Generation 12 Energy Capacity 265 Matter Stores 300 Matter Capacity 300 Sight Range 16 Terrain Scan Density 10 Evasion (%) 40 Targeting Accuracy 5 Recoil Reduction 2 Item Schematics ----------------- None Robot Schematics ------------------ None Fabricated ------------ Nothing Alien Tech Used ----------------- None Achievements -------------- None Challenges ------------ None Game ------ Seed TitaniumVisualUnit Manual? 0 Play Time 00:08:10 Cumulative 231.1 hours Start 2021.09.16 @ 15:13:35 End 2021.09.16 @ 15:19:59 Sessions 1 Manual Loads 0 Difficulty Rogue Special Mode None Game No. 293 Rogue 206 Adventurer 87 Explorer 0 Win Type - Total 5 Types 3/0/1/1/0/0/0/0/0 Lore% 71 Gallery% 79 Achievement% 67 Wizard Run 0 Options --------- ASCII 0 Keyboard 1 Movement Numpad Keybinds 0 Fullscreen 1 Font 18/Smallcaps Map View 76x50 Tactical HUD 1 Map Filters NONE Filters NONE Steam 1 RUN: 43284268-4a03-4073-a643-fa13d9678faf